[Event "*** Titled Tuesday Blitz"]
[Site "Chess.com"]
[Date "2020.05.05"]
[Round "1"]
[White "sergeikim"]
[Black "Dumbo32"]
[Result "1-0"]
[WhiteElo "2488"]
[BlackElo "2034"]
[TimeControl "180+1"]
[EndTime "10:07:16 PDT"]
[Termination "sergeikim won on time"]

1. d4 {[%clk 0:02:59.9]} 1... d5 {[%clk 0:02:59.3]} 2. c4 {[%clk 0:02:58.7]}
2... dxc4 {[%clk 0:02:58.6]} 3. e3 {[%clk 0:02:57.6]} 3... Nf6 {[%clk
0:02:57.4]} 4. Bxc4 {[%clk 0:02:57.2]} 4... e6 {[%clk 0:02:57]} 5. Nf3 {[%clk
0:02:56.9]} 5... a6 {[%clk 0:02:56.8]} 6. a4 {[%clk 0:02:54.8]} 6... c5 {[%clk
0:02:55.8]} 7. O-O {[%clk 0:02:54.2]} 7... Qc7 {[%clk 0:02:52.6]} 8. Qe2 {[%clk
0:02:53.1]} 8... Nbd7 {[%clk 0:02:48.3]} 9. Nc3 {[%clk 0:02:52]} 9... Be7 {[%clk
0:02:24.2]} 10. Rd1 {[%clk 0:02:46.1]} 10... O-O {[%clk 0:02:17.1]} 11. d5
{[%clk 0:02:46.1]} 11... exd5 {[%clk 0:02:16.4]} 12. Bxd5 {[%clk 0:02:46]} 12...
Nb6 {[%clk 0:01:58.3]} 13. Ba2 {[%clk 0:02:44.4]} 13... Bg4 {[%clk 0:01:57.8]}
14. h3 {[%clk 0:02:43]} 14... Bh5 {[%clk 0:01:57.1]} 15. a5 {[%clk 0:02:38.1]}
15... Nbd7 {[%clk 0:01:56.1]} 16. e4 {[%clk 0:02:37.3]} 16... Ne5 {[%clk
0:01:44.3]} 17. g4 {[%clk 0:02:36.4]} 17... Bg6 {[%clk 0:00:33]} 18. Bf4 {[%clk
0:02:15.8]} 18... Nxf3+ {[%clk 0:00:32.1]} 19. Qxf3 {[%clk 0:02:15.1]} 19... Qc6
{[%clk 0:00:31.9]} 20. Nd5 {[%clk 0:02:07.3]} 20... Bd8 {[%clk 0:00:31]} 21. e5
{[%clk 0:01:45.4]} 21... Be4 {[%clk 0:00:28]} 22. Nxf6+ {[%clk 0:01:38.5]} 22...
Bxf6 {[%clk 0:00:26.3]} 23. Qg3 {[%clk 0:01:37.6]} 23... Be7 {[%clk 0:00:24.1]}
24. Bc4 {[%clk 0:01:21.5]} 24... Rad8 {[%clk 0:00:23.2]} 25. Be2 {[%clk
0:01:20.4]} 25... Rd4 {[%clk 0:00:20.2]} 26. Be3 {[%clk 0:01:17.1]} 26... Rb4
{[%clk 0:00:18.3]} 27. f3 {[%clk 0:01:12.2]} 27... Bd5 {[%clk 0:00:14.2]} 28.
Rd2 {[%clk 0:01:06.5]} 28... Rb3 {[%clk 0:00:13.2]} 29. Qf2 {[%clk 0:01:00]}
29... c4 {[%clk 0:00:13]} 30. Bd4 {[%clk 0:00:45]} 30... Bb4 {[%clk 0:00:10.7]}
31. Rc2 {[%clk 0:00:41.8]} 31... Rd8 {[%clk 0:00:10.8]} 32. Rac1 {[%clk
0:00:38.5]} 32... Bxf3 {[%clk 0:00:08]} 33. Rxc4 {[%clk 0:00:34.5]} 33... Qd5
{[%clk 0:00:04.9]} 34. Bf1 {[%clk 0:00:25.8]} 34... Bf8 {[%clk 0:00:03.6]} 35.
Bc3 {[%clk 0:00:21.9]} 35... h5 {[%clk 0:00:02.4]} 36. Rd4 {[%clk 0:00:20.6]}
1-0

[Event "*** Titled Tuesday Blitz"]
[Site "Chess.com"]
[Date "2020.05.05"]
[Round "1"]
[White "canary2016"]
[Black "Maksimus1998"]
[Result "0-1"]
[WhiteElo "1896"]
[BlackElo "2476"]
[TimeControl "180+1"]
[EndTime "10:07:16 PDT"]
[Termination "Maksimus1998 won by resignation"]

1. Nf3 {[%clk 0:03:00.8]} 1... Nf6 {[%clk 0:02:58.3]} 2. g3 {[%clk 0:03:00.6]}
2... g6 {[%clk 0:02:58.6]} 3. Bg2 {[%clk 0:03:00.8]} 3... Bg7 {[%clk 0:02:59.5]}
4. O-O {[%clk 0:03:00.7]} 4... O-O {[%clk 0:02:59.9]} 5. d4 {[%clk 0:03:00.8]}
5... d6 {[%clk 0:02:59.6]} 6. c4 {[%clk 0:03:00.7]} 6... Ne4 {[%clk 0:03:00.2]}
7. Qc2 {[%clk 0:02:56.6]} 7... f5 {[%clk 0:02:58]} 8. Nc3 {[%clk 0:02:54.9]}
8... Nxc3 {[%clk 0:02:57.7]} 9. Qxc3 {[%clk 0:02:54.4]} 9... Nc6 {[%clk
0:02:51.3]} 10. Rd1 {[%clk 0:02:52.4]} 10... Qe8 {[%clk 0:02:40.4]} 11. Qc2
{[%clk 0:02:50.8]} 11... e5 {[%clk 0:02:39.6]} 12. dxe5 {[%clk 0:02:47.2]} 12...
dxe5 {[%clk 0:02:32.8]} 13. Rb1 {[%clk 0:02:45.4]} 13... e4 {[%clk 0:02:32.4]}
14. Nd2 {[%clk 0:02:44.4]} 14... e3 {[%clk 0:02:29]} 15. Nf3 {[%clk 0:02:41.6]}
15... exf2+ {[%clk 0:02:29]} 16. Kxf2 {[%clk 0:02:41.7]} 16... h6 {[%clk
0:02:24.7]} 17. Be3 {[%clk 0:02:41.4]} 17... Be6 {[%clk 0:02:21.6]} 18. b3
{[%clk 0:02:40.2]} 18... Qe7 {[%clk 0:02:12.4]} 19. Nd4 {[%clk 0:02:38.6]} 19...
Nxd4 {[%clk 0:02:06.5]} 20. Bxd4 {[%clk 0:02:36.9]} 20... c6 {[%clk 0:02:07.1]}
21. Bxg7 {[%clk 0:02:35.2]} 21... Qxg7 {[%clk 0:02:06.9]} 22. Rd6 {[%clk
0:02:31.8]} 22... Qe5 {[%clk 0:02:04.6]} 23. Rbd1 {[%clk 0:02:30.5]} 23... Rae8
{[%clk 0:01:54.8]} 24. Qd3 {[%clk 0:02:19.4]} 24... Bf7 {[%clk 0:01:51.4]} 25.
Bf3 {[%clk 0:02:16.4]} 25... f4 {[%clk 0:01:41]} 26. Rg1 {[%clk 0:02:03.3]}
26... Qe3+ {[%clk 0:01:25.1]} 27. Kf1 {[%clk 0:01:56.6]} 27... Qxd3 {[%clk
0:01:21.7]} 28. Rxd3 {[%clk 0:01:55]} 28... fxg3 {[%clk 0:01:20.8]} 29. Rxg3
{[%clk 0:01:54]} 29... Re7 {[%clk 0:01:18.4]} 30. Bh5 {[%clk 0:01:52]} 30... g5
{[%clk 0:01:16.5]} 31. Bf3 {[%clk 0:01:51.4]} 31... Bg6 {[%clk 0:01:14.8]} 32.
Rd6 {[%clk 0:01:49.4]} 32... Kg7 {[%clk 0:01:12]} 33. Ke1 {[%clk 0:01:48.3]}
33... Rf6 {[%clk 0:01:10]} 34. Rd8 {[%clk 0:01:44]} 34... Rfe6 {[%clk
0:01:04.4]} 35. Kd2 {[%clk 0:01:43.8]} 35... Kf6 {[%clk 0:00:57.7]} 36. Rd4
{[%clk 0:01:42.4]} 36... h5 {[%clk 0:00:55.3]} 37. h3 {[%clk 0:01:41]} 37... h4
{[%clk 0:00:51]} 38. Rg1 {[%clk 0:01:39]} 38... Bf5 {[%clk 0:00:51.1]} 39. Rh1
{[%clk 0:01:34.9]} 39... Ke5 {[%clk 0:00:45.9]} 40. Rd8 {[%clk 0:01:30.8]} 40...
Rd6+ {[%clk 0:00:42.1]} 41. Rxd6 {[%clk 0:01:30.5]} 41... Kxd6 {[%clk 0:00:43]}
42. Kc3 {[%clk 0:01:29.8]} 42... Ke5 {[%clk 0:00:42.4]} 43. Kd2 {[%clk
0:01:28.8]} 43... Kf4 {[%clk 0:00:42]} 44. Rh2 {[%clk 0:01:17.4]} 44... Re5
{[%clk 0:00:36]} 45. Kc3 {[%clk 0:01:08.5]} 45... Ra5 {[%clk 0:00:33.9]} 46. Kb2
{[%clk 0:01:07.8]} 46... Ke3 {[%clk 0:00:31.8]} 47. Rh1 {[%clk 0:01:04.1]} 47...
Re5 {[%clk 0:00:31.8]} 48. Rh2 {[%clk 0:01:03.3]} 48... a5 {[%clk 0:00:32]} 49.
Rh1 {[%clk 0:01:01.9]} 49... Be4 {[%clk 0:00:32.4]} 50. Bg4 {[%clk 0:01:00.3]}
50... Bxh1 {[%clk 0:00:30.2]} 51. Kc2 {[%clk 0:00:58.7]} 51... Kf4 {[%clk
0:00:30.1]} 52. Kd2 {[%clk 0:00:57.7]} 52... Kg3 {[%clk 0:00:30.3]} 53. Bc8
{[%clk 0:00:55.8]} 53... Re7 {[%clk 0:00:29.3]} 54. Bf5 {[%clk 0:00:54.2]} 54...
Bg2 {[%clk 0:00:29.4]} 55. Bd3 {[%clk 0:00:52.3]} 55... Bxh3 {[%clk 0:00:29.9]}
56. Kc3 {[%clk 0:00:50.6]} 56... Bg4 {[%clk 0:00:30]} 57. e4 {[%clk 0:00:49.5]}
57... h3 {[%clk 0:00:30.2]} 58. Kd4 {[%clk 0:00:48.4]} 58... h2 {[%clk
0:00:31.1]} 59. e5 {[%clk 0:00:48.3]} 59... h1=Q {[%clk 0:00:30.4]} 0-1

[Event "*** Titled Tuesday Blitz"]
[Site "Chess.com"]
[Date "2020.05.05"]
[Round "1"]
[White "KrakenBeast"]
[Black "Mikhail_Biryukov"]
[Result "0-1"]
[WhiteElo "2335"]
[BlackElo "2663"]
[TimeControl "180+1"]
[EndTime "10:07:17 PDT"]
[Termination "Mikhail_Biryukov won by resignation"]

1. d4 {[%clk 0:03:00.9]} 1... Nf6 {[%clk 0:02:59.2]} 2. c4 {[%clk 0:02:50]} 2...
e6 {[%clk 0:02:59.2]} 3. Nf3 {[%clk 0:02:50.4]} 3... d5 {[%clk 0:02:58.3]} 4. g3
{[%clk 0:02:50.9]} 4... dxc4 {[%clk 0:02:57.8]} 5. Bg2 {[%clk 0:02:49.4]} 5...
Bb4+ {[%clk 0:02:57.7]} 6. Bd2 {[%clk 0:02:48.5]} 6... c5 {[%clk 0:02:58.3]} 7.
dxc5 {[%clk 0:02:38.3]} 7... Bxc5 {[%clk 0:02:47]} 8. Qa4+ {[%clk 0:02:38.1]}
8... Nc6 {[%clk 0:02:42.8]} 9. Qxc4 {[%clk 0:02:37.7]} 9... Qb6 {[%clk
0:02:41.1]} 10. O-O {[%clk 0:02:31.1]} 10... O-O {[%clk 0:02:38.4]} 11. Nc3
{[%clk 0:02:28.6]} 11... Qb4 {[%clk 0:02:35.8]} 12. Qxb4 {[%clk 0:02:26.7]}
12... Bxb4 {[%clk 0:02:34.8]} 13. a3 {[%clk 0:02:26.1]} 13... Ba5 {[%clk
0:02:33.2]} 14. b4 {[%clk 0:02:25.7]} 14... Bb6 {[%clk 0:02:32.8]} 15. Na4
{[%clk 0:02:21.2]} 15... Bc7 {[%clk 0:02:31.9]} 16. Rac1 {[%clk 0:02:13.5]}
16... Bd6 {[%clk 0:02:29.2]} 17. Rfd1 {[%clk 0:02:11.3]} 17... Be7 {[%clk
0:02:09.5]} 18. b5 {[%clk 0:02:00.5]} 18... Nb8 {[%clk 0:02:08.8]} 19. Bb4
{[%clk 0:01:56.1]} 19... Bxb4 {[%clk 0:02:07.2]} 20. axb4 {[%clk 0:01:57]} 20...
Nbd7 {[%clk 0:02:05.5]} 21. Nd4 {[%clk 0:01:41.1]} 21... Nb6 {[%clk 0:02:03.3]}
22. Nc5 {[%clk 0:01:36]} 22... Nbd5 {[%clk 0:02:03.4]} 23. Nd3 {[%clk
0:01:30.8]} 23... b6 {[%clk 0:01:57.2]} 24. e4 {[%clk 0:01:30.4]} 24... Ne7
{[%clk 0:01:57.2]} 25. Rc7 {[%clk 0:01:27.5]} 25... Re8 {[%clk 0:01:25.6]} 26.
Ne5 {[%clk 0:01:27.4]} 26... Kf8 {[%clk 0:01:16.9]} 27. Ndc6 {[%clk 0:01:25.2]}
27... Nxc6 {[%clk 0:01:11.6]} 28. Nxc6 {[%clk 0:01:26.1]} 28... a6 {[%clk
0:01:07.1]} 29. Ra1 {[%clk 0:01:12.6]} 29... e5 {[%clk 0:01:04.4]} 30. f3 {[%clk
0:01:06.6]} 30... Re6 {[%clk 0:01:03.7]} 31. Bf1 {[%clk 0:01:02.8]} 31... Ne8
{[%clk 0:01:03.3]} 32. Ra7 {[%clk 0:00:59.4]} 32... Rxa7 {[%clk 0:00:55.8]} 33.
Nxa7 {[%clk 0:01:00.3]} 33... Bb7 {[%clk 0:00:56.7]} 34. bxa6 {[%clk 0:00:58.7]}
34... Ba8 {[%clk 0:00:56.8]} 35. Bc4 {[%clk 0:00:57.8]} 35... Rd6 {[%clk
0:00:52.9]} 36. Nc8 {[%clk 0:00:52.4]} 36... Rc6 {[%clk 0:00:52.4]} 37. Nxb6
{[%clk 0:00:35.9]} 37... Rxb6 {[%clk 0:00:52.2]} 38. b5 {[%clk 0:00:23.7]} 38...
Nc7 {[%clk 0:00:51]} 39. Be2 {[%clk 0:00:16]} 39... Ke7 {[%clk 0:00:50.7]} 40.
Rc1 {[%clk 0:00:15.4]} 40... Kd7 {[%clk 0:00:43.8]} 41. Kf2 {[%clk 0:00:14.8]}
41... Nxb5 {[%clk 0:00:40.1]} 42. Rc5 {[%clk 0:00:15.4]} 42... Nd4 {[%clk
0:00:39.5]} 43. Rc4 {[%clk 0:00:15.4]} 43... Rb2 {[%clk 0:00:39.1]} 0-1

[Event "*** Titled Tuesday Blitz"]
[Site "Chess.com"]
[Date "2020.05.05"]
[Round "1"]
[White "S-Fazulyanov"]
[Black "Eloist"]
[Result "1-0"]
[WhiteElo "2577"]
[BlackElo "2246"]
[TimeControl "180+1"]
[EndTime "10:07:18 PDT"]
[Termination "S-Fazulyanov won on time"]

1. e4 {[%clk 0:03:00.9]} 1... e6 {[%clk 0:02:59]} 2. d4 {[%clk 0:03:00.9]} 2...
d5 {[%clk 0:02:58]} 3. e5 {[%clk 0:03:01.4]} 3... c5 {[%clk 0:02:56.3]} 4. c3
{[%clk 0:03:01.9]} 4... Qb6 {[%clk 0:02:55.4]} 5. Nf3 {[%clk 0:03:01.8]} 5...
Bd7 {[%clk 0:02:55.3]} 6. a3 {[%clk 0:03:02.1]} 6... Bb5 {[%clk 0:02:55]} 7. c4
{[%clk 0:03:02.5]} 7... Bxc4 {[%clk 0:02:54.7]} 8. Bxc4 {[%clk 0:03:01.8]} 8...
dxc4 {[%clk 0:02:55.6]} 9. d5 {[%clk 0:03:01.8]} 9... Qb3 {[%clk 0:02:55.4]} 10.
dxe6 {[%clk 0:02:52.8]} 10... Qxd1+ {[%clk 0:02:53.8]} 11. Kxd1 {[%clk
0:02:53.7]} 11... fxe6 {[%clk 0:02:53.9]} 12. Ng5 {[%clk 0:02:41.5]} 12... Ke7
{[%clk 0:01:55.2]} 13. Nd2 {[%clk 0:02:37.1]} 13... Nc6 {[%clk 0:01:45.8]} 14.
Nxc4 {[%clk 0:02:23.7]} 14... Rd8+ {[%clk 0:01:40.5]} 15. Ke1 {[%clk 0:02:13.8]}
15... b5 {[%clk 0:01:16.9]} 16. Nd6 {[%clk 0:02:11.5]} 16... Nxe5 {[%clk
0:01:05.3]} 17. Nxb5 {[%clk 0:02:07.3]} 17... Nf6 {[%clk 0:00:40.2]} 18. Be3
{[%clk 0:01:59.3]} 18... Nd3+ {[%clk 0:00:30.2]} 19. Ke2 {[%clk 0:01:59.3]}
19... h6 {[%clk 0:00:28.1]} 20. Rad1 {[%clk 0:01:27.3]} 20... hxg5 {[%clk
0:00:12.9]} 21. Rxd3 {[%clk 0:01:26.2]} 21... Rxd3 {[%clk 0:00:12.6]} 22. Kxd3
{[%clk 0:01:27.1]} 22... a6 {[%clk 0:00:11.9]} 23. Bxc5+ {[%clk 0:01:27.1]}
23... Kf7 {[%clk 0:00:11.3]} 24. Bxf8 {[%clk 0:01:25.7]} 24... Rxf8 {[%clk
0:00:12.2]} 25. Nc3 {[%clk 0:01:21.3]} 25... Rd8+ {[%clk 0:00:10.8]} 26. Kc2
{[%clk 0:01:22]} 26... Ng4 {[%clk 0:00:10]} 27. h3 {[%clk 0:01:17.6]} 27... Ne5
{[%clk 0:00:09.3]} 28. Ne4 {[%clk 0:01:15.7]} 28... Kg6 {[%clk 0:00:08.5]} 29.
Rd1 {[%clk 0:01:14.1]} 29... Rc8+ {[%clk 0:00:07.1]} 30. Nc3 {[%clk 0:01:14.7]}
30... Kf5 {[%clk 0:00:06.3]} 31. Rd6 {[%clk 0:01:14.7]} 31... a5 {[%clk
0:00:05.4]} 32. Ra6 {[%clk 0:01:13]} 32... Nc4 {[%clk 0:00:04.4]} 33. g3 {[%clk
0:01:02.7]} 33... Rd8 {[%clk 0:00:04.1]} 34. Kb3 {[%clk 0:01:00.8]} 34... Nd2+
{[%clk 0:00:03.3]} 35. Kc2 {[%clk 0:01:00.8]} 35... Nc4 {[%clk 0:00:02.9]} 36.
Kb3 {[%clk 0:01:01.3]} 36... Nd2+ {[%clk 0:00:02.7]} 37. Ka2 {[%clk 0:01:01.8]}
37... Nc4 {[%clk 0:00:02.7]} 38. b3 {[%clk 0:00:57.3]} 38... Rd2+ {[%clk
0:00:01.6]} 39. Ka1 {[%clk 0:00:57.7]} 39... Ne5 {[%clk 0:00:01.4]} 40. Rxa5
{[%clk 0:00:57.6]} 40... Rxf2 {[%clk 0:00:01.4]} 41. g4+ {[%clk 0:00:56.9]}
41... Kf4 {[%clk 0:00:01.3]} 42. Kb1 {[%clk 0:00:53.3]} 42... Rh2 {[%clk
0:00:01.9]} 43. b4 {[%clk 0:00:50.9]} 43... Nd3 {[%clk 0:00:02]} 44. Ra8 {[%clk
0:00:44.5]} 44... Rb2+ {[%clk 0:00:01.8]} 45. Ka1 {[%clk 0:00:45]} 45... Rc2
{[%clk 0:00:01.9]} 46. Rf8+ {[%clk 0:00:43.4]} 46... Kg3 {[%clk 0:00:01]} 47.
Ne4+ {[%clk 0:00:43.7]} 1-0

[Event "*** Titled Tuesday Blitz"]
[Site "Chess.com"]
[Date "2020.05.05"]
[Round "1"]
[White "Beca95"]
[Black "MasterKroket"]
[Result "1-0"]
[WhiteElo "2861"]
[BlackElo "2438"]
[TimeControl "180+1"]
[EndTime "10:07:19 PDT"]
[Termination "Beca95 won by checkmate"]

1. Nf3 {[%clk 0:03:00.2]} 1... Nf6 {[%clk 0:02:59.5]} 2. c4 {[%clk 0:03:00.3]}
2... e6 {[%clk 0:02:59.6]} 3. Nc3 {[%clk 0:02:59.8]} 3... d5 {[%clk 0:02:57.9]}
4. e3 {[%clk 0:02:57]} 4... Be7 {[%clk 0:02:57.6]} 5. b3 {[%clk 0:02:56.1]} 5...
O-O {[%clk 0:02:57.7]} 6. Bb2 {[%clk 0:02:56.4]} 6... c5 {[%clk 0:02:57.5]} 7.
cxd5 {[%clk 0:02:55.4]} 7... Nxd5 {[%clk 0:02:57.2]} 8. h4 {[%clk 0:02:55.2]}
8... Bf6 {[%clk 0:02:52.9]} 9. Qb1 {[%clk 0:02:54.1]} 9... Nxc3 {[%clk
0:02:46.6]} 10. Bxc3 {[%clk 0:02:52.6]} 10... Bxc3 {[%clk 0:02:38.9]} 11. dxc3
{[%clk 0:02:53.5]} 11... Qf6 {[%clk 0:02:38.4]} 12. Qc2 {[%clk 0:02:52.8]} 12...
e5 {[%clk 0:02:34]} 13. Bd3 {[%clk 0:02:50.8]} 13... h6 {[%clk 0:02:28.9]} 14.
O-O-O {[%clk 0:02:50.1]} 14... a5 {[%clk 0:02:17.8]} 15. Ng5 {[%clk 0:02:40]}
15... Re8 {[%clk 0:01:57.8]} 16. Bb5 {[%clk 0:02:20.2]} 16... Bf5 {[%clk
0:01:32.8]} 17. e4 {[%clk 0:01:54.3]} 17... Nc6 {[%clk 0:01:32.2]} 18. exf5
{[%clk 0:01:46.2]} 18... hxg5 {[%clk 0:01:32.1]} 19. hxg5 {[%clk 0:01:44.6]}
19... Qxg5+ {[%clk 0:01:31.8]} 20. Kb2 {[%clk 0:01:43.4]} 20... e4 {[%clk
0:01:14.9]} 21. Rh3 {[%clk 0:01:23.8]} 21... Qxf5 {[%clk 0:00:54.5]} 22. Rdh1
{[%clk 0:01:21.9]} 22... g6 {[%clk 0:00:48.9]} 23. Qd2 {[%clk 0:00:40.3]} 23...
Kg7 {[%clk 0:00:40.8]} 24. Rh7+ {[%clk 0:00:30.3]} 24... Kf6 {[%clk 0:00:41.1]}
25. g4 {[%clk 0:00:28]} 25... Qe5 {[%clk 0:00:33.1]} 26. Bc4 {[%clk 0:00:26.8]}
26... Rf8 {[%clk 0:00:27.1]} 27. Qd7 {[%clk 0:00:22.9]} 27... Qe7 {[%clk
0:00:22.2]} 28. Qd5 {[%clk 0:00:22]} 28... Qe5 {[%clk 0:00:16.3]} 29. Rxf7+
{[%clk 0:00:20.5]} 29... Rxf7 {[%clk 0:00:17.2]} 30. Qxf7+ {[%clk 0:00:20.7]}
30... Kg5 {[%clk 0:00:17.9]} 31. Qh7 {[%clk 0:00:15.6]} 31... Kf4 {[%clk
0:00:07.8]} 32. Qh2+ {[%clk 0:00:13.2]} 32... Kg5 {[%clk 0:00:05.4]} 33. Qh4+
{[%clk 0:00:13.2]} 33... Kf4 {[%clk 0:00:05.1]} 34. g5+ {[%clk 0:00:13.7]} 34...
Kf5 {[%clk 0:00:04.3]} 35. Rg1 {[%clk 0:00:08.8]} 35... Qf4 {[%clk 0:00:04.2]}
36. Qh3+ {[%clk 0:00:09.2]} 36... Ke5 {[%clk 0:00:04.4]} 37. Qe6# {[%clk
0:00:09.3]} 1-0

[Event "*** Titled Tuesday Blitz"]
[Site "Chess.com"]
[Date "2020.05.05"]
[Round "1"]
[White "rakshi2005"]
[Black "UCantHandleDenker"]
[Result "0-1"]
[WhiteElo "2268"]
[BlackElo "2596"]
[TimeControl "180+1"]
[EndTime "10:07:20 PDT"]
[Termination "UCantHandleDenker won by resignation"]

1. e4 {[%clk 0:03:00.9]} 1... c5 {[%clk 0:02:59]} 2. Nf3 {[%clk 0:02:56.3]} 2...
d6 {[%clk 0:02:58.9]} 3. d4 {[%clk 0:02:54]} 3... cxd4 {[%clk 0:02:59.3]} 4.
Nxd4 {[%clk 0:02:53]} 4... Nf6 {[%clk 0:02:58.9]} 5. Nc3 {[%clk 0:02:53.2]} 5...
g6 {[%clk 0:02:59]} 6. Be3 {[%clk 0:02:52]} 6... Bg7 {[%clk 0:02:59.2]} 7. Nb3
{[%clk 0:02:52]} 7... O-O {[%clk 0:02:59.1]} 8. Be2 {[%clk 0:02:52.2]} 8... Nc6
{[%clk 0:02:58.8]} 9. O-O {[%clk 0:02:52.5]} 9... a6 {[%clk 0:02:57.6]} 10. f4
{[%clk 0:02:51.2]} 10... b5 {[%clk 0:02:56]} 11. Bf3 {[%clk 0:02:51.3]} 11...
Bb7 {[%clk 0:02:56.2]} 12. Nd5 {[%clk 0:02:49]} 12... Nxd5 {[%clk 0:02:53.6]}
13. exd5 {[%clk 0:02:45.4]} 13... Na5 {[%clk 0:02:53.7]} 14. Nxa5 {[%clk
0:02:41.4]} 14... Qxa5 {[%clk 0:02:53]} 15. c3 {[%clk 0:02:41.3]} 15... Rac8
{[%clk 0:02:50.1]} 16. Qe2 {[%clk 0:02:36.7]} 16... Rc4 {[%clk 0:02:45.3]} 17.
Rfe1 {[%clk 0:02:28.1]} 17... Rfc8 {[%clk 0:02:22.8]} 18. Qf2 {[%clk 0:02:15.5]}
18... Qd8 {[%clk 0:02:20.6]} 19. Re2 {[%clk 0:02:12.2]} 19... Bf6 {[%clk
0:02:14.2]} 20. Rae1 {[%clk 0:02:09.7]} 20... Qd7 {[%clk 0:02:14.2]} 21. Qg3
{[%clk 0:02:06.4]} 21... Qd8 {[%clk 0:01:59.8]} 22. Qh3 {[%clk 0:01:53.7]} 22...
b4 {[%clk 0:01:55.8]} 23. cxb4 {[%clk 0:01:36]} 23... Rxb4 {[%clk 0:01:56.7]}
24. b3 {[%clk 0:01:34]} 24... a5 {[%clk 0:01:36.8]} 25. f5 {[%clk 0:01:33.6]}
25... a4 {[%clk 0:01:35.5]} 26. fxg6 {[%clk 0:01:32.8]} 26... hxg6 {[%clk
0:01:35.2]} 27. Bg4 {[%clk 0:01:29.8]} 27... Rc3 {[%clk 0:01:31.1]} 28. bxa4
{[%clk 0:00:57.9]} 28... Rxa4 {[%clk 0:01:30.7]} 29. Bf3 {[%clk 0:00:55.6]}
29... Rxe3 {[%clk 0:01:20.1]} 30. Rxe3 {[%clk 0:00:55.2]} 30... Bd4 {[%clk
0:01:20.6]} 31. Be4 {[%clk 0:00:50.7]} 31... Rxa2 {[%clk 0:01:16.1]} 32. Kh1
{[%clk 0:00:49.4]} 32... Bxe3 {[%clk 0:01:14.6]} 33. Qxe3 {[%clk 0:00:50.3]}
33... Qa5 {[%clk 0:01:00.1]} 34. Bxg6 {[%clk 0:00:45.7]} 34... Qxd5 {[%clk
0:00:52.8]} 35. Be4 {[%clk 0:00:07.6]} 35... Qxe4 {[%clk 0:00:49.8]} 36. Qg5+
{[%clk 0:00:07.4]} 36... Qg6 {[%clk 0:00:45.2]} 37. Qxg6+ {[%clk 0:00:06.8]}
37... fxg6 {[%clk 0:00:45]} 38. h4 {[%clk 0:00:07.2]} 38... Bxg2+ {[%clk
0:00:35]} 39. Kg1 {[%clk 0:00:06.7]} 39... Kf7 {[%clk 0:00:34.3]} 40. Rc1 {[%clk
0:00:05.7]} 40... Be4 {[%clk 0:00:30.3]} 41. Rf1+ {[%clk 0:00:05.4]} 41... Bf5
{[%clk 0:00:30.6]} 42. h5 {[%clk 0:00:05.2]} 42... e6 {[%clk 0:00:30.8]} 43.
hxg6+ {[%clk 0:00:04.1]} 43... Kxg6 {[%clk 0:00:31]} 0-1

[Event "*** Titled Tuesday Blitz"]
[Site "Chess.com"]
[Date "2020.05.05"]
[Round "1"]
[White "2nd_life"]
[Black "kuli4ik"]
[Result "0-1"]
[WhiteElo "2412"]
[BlackElo "2793"]
[TimeControl "180+1"]
[EndTime "10:07:21 PDT"]
[Termination "kuli4ik won on time"]

1. e4 {[%clk 0:02:55.6]} 1... Nf6 {[%clk 0:02:59.7]} 2. e5 {[%clk 0:02:53.1]}
2... Nd5 {[%clk 0:02:59.9]} 3. d4 {[%clk 0:02:53.2]} 3... d6 {[%clk 0:03:00]} 4.
Nf3 {[%clk 0:02:53.4]} 4... Nb6 {[%clk 0:02:59.9]} 5. exd6 {[%clk 0:02:41.6]}
5... cxd6 {[%clk 0:02:55.8]} 6. a4 {[%clk 0:02:35.5]} 6... g6 {[%clk 0:02:55]}
7. a5 {[%clk 0:02:34.5]} 7... N6d7 {[%clk 0:02:53.3]} 8. Bc4 {[%clk 0:02:30.5]}
8... e6 {[%clk 0:02:40.7]} 9. Bg5 {[%clk 0:02:15.5]} 9... Qc7 {[%clk 0:02:37.5]}
10. Na3 {[%clk 0:02:06.2]} 10... a6 {[%clk 0:02:33.1]} 11. O-O {[%clk
0:01:50.8]} 11... Bg7 {[%clk 0:02:32.5]} 12. Qd2 {[%clk 0:01:45.7]} 12... O-O
{[%clk 0:02:25.3]} 13. b4 {[%clk 0:01:40.1]} 13... Nf6 {[%clk 0:02:21.4]} 14.
Bd3 {[%clk 0:01:34.7]} 14... e5 {[%clk 0:02:01.2]} 15. Rfe1 {[%clk 0:01:08.7]}
15... Nc6 {[%clk 0:01:53]} 16. dxe5 {[%clk 0:00:37.8]} 16... dxe5 {[%clk
0:01:51.5]} 17. Qc3 {[%clk 0:00:24.7]} 17... Nd5 {[%clk 0:01:39.5]} 18. Qc5
{[%clk 0:00:18.3]} 18... Ndxb4 {[%clk 0:01:35.6]} 19. Nc4 {[%clk 0:00:14.9]}
19... Nxd3 {[%clk 0:01:30.7]} 20. cxd3 {[%clk 0:00:14.8]} 20... Bf5 {[%clk
0:01:26.1]} 21. Nfxe5 {[%clk 0:00:12.9]} 21... Rae8 {[%clk 0:01:07]} 22. Nxc6
{[%clk 0:00:12.1]} 22... Qxc6 {[%clk 0:01:04.2]} 23. Qxc6 {[%clk 0:00:11.9]}
23... bxc6 {[%clk 0:01:05.1]} 24. Rad1 {[%clk 0:00:09.8]} 24... Bxd3 {[%clk
0:00:56.6]} 25. Rxe8 {[%clk 0:00:07.7]} 25... Rxe8 {[%clk 0:00:56]} 26. Nd6
{[%clk 0:00:07]} 26... Re6 {[%clk 0:00:53.2]} 27. Nb7 {[%clk 0:00:07]} 27... Bf8
{[%clk 0:00:39.2]} 28. Be3 {[%clk 0:00:06.4]} 28... Bb5 {[%clk 0:00:31.2]} 29.
Rd8 {[%clk 0:00:03]} 29... Kg7 {[%clk 0:00:31.6]} 30. h3 {[%clk 0:00:02.6]}
30... Be7 {[%clk 0:00:21.7]} 31. Rd7 {[%clk 0:00:01.8]} 31... c5 {[%clk
0:00:18.4]} 32. Rc7 {[%clk 0:00:02]} 32... c4 {[%clk 0:00:18.6]} 33. Nc5 {[%clk
0:00:01.4]} 33... Bxc5 {[%clk 0:00:17.2]} 34. Bxc5 {[%clk 0:00:01.2]} 34... g5
{[%clk 0:00:17.6]} 35. Bd4+ {[%clk 0:00:01.5]} 35... Kg6 {[%clk 0:00:18]} 36. f3
{[%clk 0:00:01.2]} 36... Rd6 {[%clk 0:00:18.3]} 0-1